fUST/lending_fUST_20250529
["ID","MTS","AMOUNT","RATE_DAILY","PERIOD"]
[362820161,1748470244146,-1812.0,0.00022,2]
[362820162,1748470244155,-151.0,0.00022,7]
[362820163,1748470244164,-318.5335453,0.00022,2]
[362820164,1748470244174,-151.0,0.00022,7]
[362820165,1748470244183,-151.0,0.00022,7]
[362820166,1748470244192,-151.0,0.00022,7]
[362820167,1748470244201,-151.0,0.00022,7]
[362820168,1748470244211,-155.021878,0.00022,7]
[362820169,1748470244219,-428.089006,0.00022,7]
[362820170,1748470244228,-428.089006,0.00022,7]
[362820171,1748470244238,-428.089006,0.00022,7]
[362820173,1748470244248,-428.089006,0.00022,7]
[362820175,1748470244258,-151.0,0.00022,7]
[362820178,1748470244268,-151.0,0.00022,7]
[362820179,1748470244278,-151.048744,0.00022,7]
[362820181,1748470244287,-151.0,0.00022,7]
[362820183,1748470244296,-151.0,0.00022,7]
[362820185,1748470244306,-151.0,0.00022,7]
[362820187,1748470244316,-151.0,0.00022,7]
[362820189,1748470244326,-151.0,0.00022,7]
[362820191,1748470244335,-151.0,0.00022,7]
[362820193,1748470244344,-293.571555,0.00022,7]
[362820195,1748470244354,-293.571555,0.00022,7]
[362820197,1748470244363,-293.571555,0.00022,7]
[362820199,1748470244372,-293.571555,0.00022,7]
[362820201,1748470244382,-293.571555,0.00022,7]
[362820203,1748470244391,-293.571555,0.00022,7]
[362820205,1748470244403,-293.571555,0.00022,7]
[362820207,1748470244413,-293.571555,0.00022,7]
[362820209,1748470244422,-720.0,0.00022,3]
[362820211,1748470244431,-151.0,0.00022,7]
[362820213,1748470244440,-151.0,0.00022,7]
[362820215,1748470244450,-151.0,0.00022,7]
[362820217,1748470244460,-151.0,0.00022,7]
[362820219,1748470244469,-151.0,0.00022,7]
[362820221,1748470244479,-151.0,0.00022,7]
[362820223,1748470244488,-255.090512,0.00022,7]
[362820225,1748470244497,-1000.0,0.00022,5]
[362820227,1748470244507,-2551.347478,0.00022,2]
[362820229,1748470244517,-2551.347478,0.00022,2]
[362820231,1748470244527,-2551.347478,0.00022,2]
[362820233,1748470244536,-2551.347478,0.00022,2]
[362820235,1748470244546,-2551.347478,0.00022,2]
[362820237,1748470244555,-2551.347478,0.00022,2]
[362820239,1748470244564,-2551.347478,0.00022,2]
[362820241,1748470244573,-2551.347478,0.00022,2]
[362820243,1748470244583,-233.46898,0.00022,7]
[362820245,1748470244592,-233.46898,0.00022,7]
[362820247,1748470244601,-233.46898,0.00022,7]
[362820249,1748470244610,-233.46898,0.00022,7]
[362820251,1748470244619,-233.46898,0.00022,7]
[362820253,1748470244628,-233.46898,0.00022,7]
[362820255,1748470244637,-233.46898,0.00022,7]
[362820257,1748470244646,-233.46898,0.00022,7]
[362820259,1748470244655,-151.0,0.00022,7]
[362820261,1748470244664,-151.0,0.00022,7]
[362820262,1748470244673,-152.399516,0.00022,7]
[362820264,1748470244683,-154.04372,0.00022,7]
[362820266,1748470244692,-272.405856,0.00022,7]
[362820268,1748470244701,-272.405856,0.00022,7]
[362820270,1748470244710,-272.405856,0.00022,7]
[362820272,1748470244720,-272.405856,0.00022,7]
[362820274,1748470244729,-272.405856,0.00022,7]
[362820276,1748470244739,-272.405856,0.00022,7]
[362820278,1748470244748,-272.405856,0.00022,7]
[362820280,1748470244757,-272.405856,0.00022,7]
[362820282,1748470244767,-151.0,0.00022,7]
[362820284,1748470244784,-151.0,0.00022,7]
[362820286,1748470244795,-151.0,0.00022,7]
[362820288,1748470244804,-151.0,0.00022,7]
[362820290,1748470244813,-151.379882,0.00022,7]
[362820292,1748470244822,-151.0,0.00022,7]
[362820294,1748470244831,-151.0,0.00022,7]
[362820296,1748470244841,-151.0,0.00022,7]
[362820298,1748470244850,-208.860792,0.00022,7]
[362820300,1748470244861,-208.860792,0.00022,7]
[362820302,1748470244871,-208.860792,0.00022,7]
[362820304,1748470244880,-208.860792,0.00022,7]
[362820306,1748470244890,-208.860792,0.00022,7]
[362820308,1748470244901,-208.860792,0.00022,7]
[362820310,1748470244911,-12658.7678854,0.00022,7]
[362820312,1748470244920,-201.88976,0.00022,7]
[362820314,1748470244929,-212.66609673,0.00022,7]
[362820316,1748470244938,-842.5625,0.00022,7]
[362820318,1748470244948,-151.0,0.00022,7]
[362820320,1748470244958,-231.6385,0.00022,7]
[362820322,1748470244967,-159.059476,0.00022,3]
[362820332,1748470245057,-159.059476,0.00022,7]
[362820334,1748470245068,-154.52993123,0.00022,3]
[362820336,1748470245077,-587.0,0.00022042,2]
[362820338,1748470245087,-151.0,0.00022055,7]
[362820340,1748470245096,-151.0,0.00022064,7]
[362820342,1748470245105,-151.0,0.00022064,7]
[362820344,1748470245115,-294.614831,0.00022064,7]
[362820346,1748470245124,-151.0,0.00022073,7]
[362820348,1748470245134,-252.897381,0.00022073,2]
[362820350,1748470245143,-252.897381,0.00022073,2]
[362820352,1748470245152,-185.03373,0.00022073,7]
[362820354,1748470245161,-185.03373,0.00022073,7]
[362820356,1748470245170,-200.0,0.00022088,7]
[362820358,1748470245179,-200.0,0.00022088,7]
[362820360,1748470245189,-151.0,0.00022108,7]
[362820362,1748470245199,-151.0,0.00022108,7]
[362820364,1748470245208,-4078.99,0.00022121,2]
[362820366,1748470245219,-2376.39712422,0.00022141,6]
[362820368,1748470245228,-200.0,0.00022191,2]
[362820370,1748470245238,-200.0,0.00022191,2]
[362820372,1748470245247,-200.0,0.00022191,2]
[362820374,1748470245256,-200.0,0.00022191,2]
[362820376,1748470245268,-200.0,0.00022191,2]
[362820378,1748470245277,-200.0,0.00022191,2]
[362820380,1748470245288,-200.0,0.00022191,2]
[362820382,1748470245308,-319.41247599,0.00022191,2]
[362820384,1748470245317,-1325.15,0.00022191,2]
[362820385,1748470245326,-962.47,0.00022191,2]
[362820388,1748470245336,-513.27,0.00022191,2]
[362820389,1748470245346,-1147.31,0.00022191,2]
[362820390,1748470245356,-612.83,0.00022191,2]
[362820392,1748470245365,-215.0738,0.00022268,2]
[362820394,1748470245375,-160.0,0.0002227,5]
[362820395,1748470245384,-11919.93445544,0.00022279,2]
[362820397,1748470245394,-2376.39712422,0.00022314,7]
[362820399,1748470245406,-40347.61411842,0.000224,2]
[362820401,1748470245415,-175.455462,0.000224,7]
[362820402,1748470245425,-428.089006,0.000224,7]
[362820404,1748470245434,-428.089006,0.000224,7]
[362820406,1748470245443,-151.0,0.000224,7]
[362820407,1748470245453,-151.0,0.000224,7]
[362820408,1748470245464,-151.0,0.000224,7]
[362820409,1748470245473,-151.0,0.000224,7]
[362820410,1748470245483,-293.571555,0.000224,7]
[362820411,1748470245493,-293.571555,0.000224,7]
[362820412,1748470245502,-151.0,0.000224,7]
[362820413,1748470245512,-2551.347478,0.000224,2]
[362820414,1748470245527,-2551.347478,0.000224,2]
[362820415,1748470245536,-233.46898,0.000224,7]
[362820416,1748470245546,-233.46898,0.000224,7]
[362820417,1748470245555,-272.405856,0.000224,7]
[362820418,1748470245565,-272.405856,0.000224,7]
[362820419,1748470245574,-151.0,0.000224,7]
[362820420,1748470245583,-151.0,0.000224,7]
[362820421,1748470245593,-208.860792,0.000224,7]
[362820422,1748470245602,-208.860792,0.000224,7]
[362820423,1748470245612,-5000.0,0.00022436,2]
[362820424,1748470245622,-20612.6,0.00022439,9]
[362820425,1748470245632,-900.0,0.00022465,2]
[362820426,1748470245641,-191.810242,0.00022465,7]
[362820427,1748470245651,-252.897381,0.00022465,2]
[362820428,1748470245661,-252.897381,0.00022465,2]
[362820429,1748470245671,-185.03373,0.00022465,7]
[362820430,1748470245680,-185.03373,0.00022465,7]
[362820431,1748470245690,-500.0,0.00022465,2]
[362820432,1748470245700,-1325.15,0.00022465,2]
[362820433,1748470245710,-962.47,0.00022465,2]
[362820434,1748470245720,-513.27,0.00022465,2]
[362820436,1748470245730,-1147.31,0.00022465,2]
[362820438,1748470245739,-612.83,0.00022465,2]
[362820440,1748470245749,-2376.39712422,0.00022486,7]
[362820442,1748470245759,-40000.0,0.000225,5]
[362820444,1748470245770,-151.0,0.000225,7]
[362820446,1748470245780,-1000.0,0.00022521,2]
[362820448,1748470245790,-1000.0,0.00022521,2]
[362820450,1748470245798,-1000.0,0.00022521,2]
[362820452,1748470245808,-1000.0,0.00022521,2]
[362820454,1748470245818,-1000.0,0.00022521,2]
[362820455,1748470245827,-1000.0,0.00022521,2]
[362820456,1748470245837,-1200.0,0.00022521,2]
[362820457,1748470245847,-1000.0,0.00022521,2]
[362820458,1748470245856,-306.0,0.00022548,2]
[362820459,1748470245866,-965.75,0.00022654,2]
[362820460,1748470245876,-11919.93445544,0.00022658,2]
[362820461,1748470245886,-2376.39712422,0.00022659,7]
[362820463,1748470245896,-185.6130573,0.0002268,2]
[362820465,1748470245906,-1325.15,0.00022739,2]
[362820467,1748470245915,-962.47,0.00022739,2]
[362820468,1748470245926,-513.27,0.00022739,2]
[362820469,1748470245936,-1147.31,0.00022739,2]
[362820470,1748470245949,-612.83,0.00022739,2]
[362820471,1748470245962,-965.75,0.00022754,7]
[362820472,1748470245973,-6610.72,0.000228,7]
[362820473,1748470245982,-3305.06,0.000228,7]
[362820474,1748470245993,-2376.39712422,0.00022831,8]
[362820475,1748470246002,-965.75,0.00022854,4]
[362820477,1748470246012,-151.0,0.00022854,7]
[362820479,1748470246025,-2551.347478,0.00022854,2]
[362820480,1748470246035,-2551.347478,0.00022854,2]
[362820481,1748470246044,-272.405856,0.00022854,7]
[362820482,1748470246054,-272.405856,0.00022854,7]
[362820483,1748470246064,-192.64481,0.00022854,7]
[362820484,1748470246073,-208.860792,0.00022854,7]
[362820485,1748470246083,-208.860792,0.00022854,7]
[362820486,1748470246092,-160.0,0.00022859,6]
[362820487,1748470246102,-160.0,0.00022859,5]
[362820488,1748470246111,-151.4502631,0.00022869,2]
[362820490,1748470246121,-200.0,0.0002287,7]
[362820492,1748470246130,-200.0,0.0002287,7]
[362820493,1748470246139,-109497.58,0.000229,2]
[362820494,1748470246149,-17678.37,0.000229,2]
[362820495,1748470246158,-370932.07,0.000229,7]
[362820496,1748470246168,-151.0,0.000229,7]
[362820497,1748470246177,-159.77541,0.000229,7]
[362820498,1748470246187,-1500.0,0.000229,14]
[362820499,1748470246196,-1500.0,0.000229,14]
[362820500,1748470246206,-1500.0,0.000229,14]
[362820501,1748470246215,-1500.0,0.000229,14]
[362820502,1748470246224,-1500.0,0.000229,14]
[362820503,1748470246235,-1500.0,0.000229,14]
[362820504,1748470246244,-1500.0,0.000229,14]
[362820505,1748470246254,-1500.0,0.000229,14]
[362820506,1748470246263,-1500.0,0.000229,14]
[362820507,1748470246275,-1500.0,0.000229,14]
[362820508,1748470246284,-1500.0,0.000229,14]
[362820509,1748470246293,-1500.0,0.000229,14]
[362820510,1748470246303,-1500.0,0.000229,14]
[362820511,1748470246312,-1500.0,0.000229,14]
[362820512,1748470246322,-1500.0,0.000229,14]
[362820513,1748470246331,-1500.0,0.000229,14]
[362820514,1748470246340,-1276.97932,0.000229,14]
[362820515,1748470246349,-252.897381,0.000229,2]
[362820516,1748470246358,-252.897381,0.000229,2]
[362820517,1748470246367,-252.897381,0.000229,2]
[362820518,1748470246376,-252.897381,0.000229,2]
[362820519,1748470246386,-428.089006,0.000229,7]
[362820520,1748470246395,-428.089006,0.000229,7]
[362820521,1748470246405,-428.089006,0.000229,7]
[362820522,1748470246415,-428.089006,0.000229,7]
[362820523,1748470246424,-151.0,0.000229,7]
[362820524,1748470246434,-151.0,0.000229,7]
[362820525,1748470246443,-151.0,0.000229,7]
[362820526,1748470246452,-151.0,0.000229,7]
[362820527,1748470246462,-185.03373,0.000229,7]
[362820528,1748470246471,-185.03373,0.000229,7]
[362820529,1748470246480,-185.03373,0.000229,7]
[362820530,1748470246490,-185.03373,0.000229,7]
[362820531,1748470246499,-151.0,0.000229,7]
[362820532,1748470246509,-151.0,0.000229,7]
[362820533,1748470246519,-151.0,0.000229,7]
[362820534,1748470246528,-151.0,0.000229,7]
[362820535,1748470246538,-293.571555,0.000229,7]
[362820536,1748470246548,-293.571555,0.000229,7]
[362820537,1748470246558,-293.571555,0.000229,7]
[362820538,1748470246568,-293.571555,0.000229,7]
[362820539,1748470246580,-151.0,0.000229,7]
[362820540,1748470246589,-2551.347478,0.000229,2]
[362820541,1748470246598,-2551.347478,0.000229,2]
[362820542,1748470246607,-233.46898,0.000229,7]
[362820543,1748470246617,-233.46898,0.000229,7]
[362820544,1748470246626,-233.46898,0.000229,7]
[362820545,1748470246635,-233.46898,0.000229,7]
[362820546,1748470246646,-272.405856,0.000229,7]
[362820547,1748470246656,-272.405856,0.000229,7]
[362820548,1748470246666,-265.387028,0.000229,7]
[362820549,1748470246677,-208.860792,0.000229,7]
[362820550,1748470246687,-208.860792,0.000229,7]
[362820551,1748470246696,-965.75,0.00022954,4]
[362820552,1748470246705,-3408.04572685,0.0002298,2]
[362820553,1748470246714,-153.0,0.00022986,2]
[362820554,1748470246724,-153.0,0.00022986,2]
[362820555,1748470246734,-153.0,0.00022986,2]
[362820556,1748470246743,-265526.62880512,0.00022999,2]
[362820557,1748470246754,-252.897381,0.00022999,2]
[362820558,1748470246765,-252.897381,0.00022999,2]
[362820559,1748470246776,-428.089006,0.00022999,7]
[362820560,1748470246786,-428.089006,0.00022999,7]
[362820561,1748470246795,-151.0,0.00022999,7]
[362820562,1748470246805,-151.0,0.00022999,7]
[362820563,1748470246815,-185.03373,0.00022999,7]
[362820564,1748470246824,-185.03373,0.00022999,7]
[362820565,1748470246833,-151.0,0.00022999,7]
[362820566,1748470246842,-151.0,0.00022999,7]
[362820567,1748470246852,-293.571555,0.00022999,7]
[362820568,1748470246861,-293.571555,0.00022999,7]
[362820569,1748470246870,-2551.347478,0.00022999,2]
[362820570,1748470246880,-2551.347478,0.00022999,2]
[362820571,1748470246889,-233.46898,0.00022999,7]
[362820572,1748470246899,-233.46898,0.00022999,7]
[362820573,1748470246909,-272.405856,0.00022999,7]
[362820574,1748470246919,-272.405856,0.00022999,7]
[362820575,1748470246930,-208.860792,0.00022999,7]
[362820576,1748470246943,-208.860792,0.00022999,7]
[362820577,1748470247023,-500.0,0.00023,2]
[362820578,1748470247039,-500.0,0.00023,2]
[362820579,1748470247048,-2000.0,0.00023,2]
[362820580,1748470247059,-2000.0,0.00023,2]
[362820581,1748470247068,-2000.0,0.00023,2]
[362820582,1748470247077,-24310.05852652,0.00023,2]
[362820583,1748470247087,-57951.0,0.00023,2]
[362820584,1748470247097,-251664.0,0.00023,2]
[362820585,1748470247106,-200303.0,0.00023,2]
[362820586,1748470247117,-18863.0,0.00023,2]
[362820587,1748470247127,-2000.0,0.00023,2]
[362820588,1748470247136,-59827.0,0.00023,2]
[362820589,1748470247145,-343288.0,0.00023,2]
[362820590,1748470247154,-252.897381,0.00023,2]
[362820591,1748470247164,-252.897381,0.00023,2]
[362820592,1748470247174,-252.897381,0.00023,2]
[362820593,1748470247184,-252.897381,0.00023,2]
[362820594,1748470247194,-252.897381,0.00023,2]
[362820595,1748470247204,-252.897381,0.00023,2]
[362820596,1748470247214,-428.089006,0.00023,7]
[362820597,1748470247223,-428.089006,0.00023,7]
[362820598,1748470247232,-428.089006,0.00023,7]
[362820599,1748470247241,-428.089006,0.00023,7]
[362820600,1748470247251,-428.089006,0.00023,7]
[362820601,1748470247260,-428.089006,0.00023,7]
[362820602,1748470247270,-151.0,0.00023,7]
[362820603,1748470247279,-151.0,0.00023,7]
[362820604,1748470247288,-151.0,0.00023,7]
[362820605,1748470247297,-160.167459,0.00023,7]
[362820606,1748470247306,-185.03373,0.00023,7]
[362820607,1748470247315,-185.03373,0.00023,7]
[362820608,1748470247324,-185.03373,0.00023,7]
[362820609,1748470247334,-185.03373,0.00023,7]
[362820610,1748470247343,-185.03373,0.00023,7]
[362820611,1748470247352,-185.03373,0.00023,7]
[362820612,1748470247361,-151.0,0.00023,7]
[362820613,1748470247371,-151.0,0.00023,7]
[362820614,1748470247380,-151.0,0.00023,7]
[362820615,1748470247389,-151.0,0.00023,7]
[362820616,1748470247399,-151.0,0.00023,7]
[362820617,1748470247412,-231.826139,0.00023,7]
[362820618,1748470247422,-293.571555,0.00023,7]
[362820619,1748470247431,-293.571555,0.00023,7]
[362820620,1748470247442,-293.571555,0.00023,7]
[362820621,1748470247451,-293.57155932,0.00023,7]
[362820622,1748470247460,-2551.347478,0.00023,2]
[362820623,1748470247470,-2551.34747154,0.00023,2]
[362820624,1748470247478,-233.46898,0.00023,7]
[362820625,1748470247488,-233.46898,0.00023,7]
[362820626,1748470247498,-233.46898,0.00023,7]
[362820627,1748470247507,-2000.0,0.00023,2]
[362820628,1748470247516,-233.468972,0.00023,7]
[362820629,1748470247526,-272.405856,0.00023,7]
[362820630,1748470247536,-272.405856,0.00023,7]
[362820631,1748470247545,-272.405856,0.00023,7]
[362820632,1748470247555,-272.405846,0.00023,7]
[362820633,1748470247566,-208.860792,0.00023,7]
[362820634,1748470247576,-208.860799,0.00023,7]
[362820635,1748470247586,-186.0,0.00023,7]
[362820636,1748470247595,-171.0,0.00023,7]
[362820637,1748470247604,-229.229959,0.00023,3]
[362820638,1748470247614,-423.24161968,0.00023,3]
[362820639,1748470247624,-160.0,0.00023,3]
[362820640,1748470247633,-160.0,0.00023,3]
[362820641,1748470247643,-200.0,0.00023,2]
[362820642,1748470247652,-160.0,0.00023,3]
[362820643,1748470247662,-2376.39712422,0.00023003,8]
[362820644,1748470247671,-500.0,0.00023013,2]
[362820645,1748470247680,-1325.15,0.00023013,2]
[362820646,1748470247690,-962.47,0.00023013,2]
[362820647,1748470247700,-513.27,0.00023013,2]
[362820648,1748470247710,-1147.31,0.00023013,2]
[362820649,1748470247720,-612.83,0.00023013,2]
[362820650,1748470247729,-11919.93445544,0.00023037,2]
[362820651,1748470247739,-965.75,0.00023054,5]
[362820652,1748470247749,-1500.0,0.00023068,2]
[362820653,1748470247758,-776.62884264,0.00023068,2]
[362820654,1748470247769,-1500.0,0.00023068,2]
[362820655,1748470247779,-1500.0,0.00023068,2]
[362820656,1748470247788,-1500.0,0.00023068,2]
[362820657,1748470247798,-832.28022977,0.00023068,2]
[362820658,1748470247807,-1800.0,0.00023068,2]
[362820659,1748470247816,-1500.0,0.00023068,2]
[362820660,1748470247826,-965.75,0.00023154,3]
[362820661,1748470247835,-8157.98,0.00023175,2]
[362820662,1748470247845,-2376.39712422,0.00023176,8]
[362820663,1748470247855,-965.75,0.00023254,3]
[362820664,1748470247864,-1325.15,0.00023287,2]
[362820665,1748470247874,-962.47,0.00023287,2]
[362820666,1748470247884,-513.27,0.00023287,2]
[362820667,1748470247894,-1147.31,0.00023287,2]
[362820668,1748470247903,-612.83,0.00023287,2]
[362820669,1748470247913,-35384.17328899,0.00023293,7]
[362820670,1748470247923,-35384.17328899,0.00023293,7]
[362820671,1748470247932,-11213.2259036,0.00023293,7]
[362820672,1748470247941,-11213.2259036,0.00023293,7]
[362820673,1748470247951,-428.089006,0.00023293,7]
[362820674,1748470247960,-428.089004,0.00023293,7]
[362820675,1748470247969,-151.0,0.00023293,7]
[362820676,1748470247979,-151.0,0.00023293,7]
[362820677,1748470247988,-2200.0,0.00023322,2]
[362820678,1748470247998,-500.0,0.00023322,2]
[362820679,1748470248009,-2376.39712422,0.00023348,9]
[362820680,1748470248019,-965.75,0.00023354,7]
[362820681,1748470248028,-306.3760041,0.0002337,2]
[362820682,1748470248037,-319.7440009,0.0002337,2]
[362820683,1748470248047,-679.3823225,0.0002337,2]
[362820684,1748470248057,-307.2915306,0.0002337,2]
[362820685,1748470248066,-158.368211,0.0002337,2]
[362820686,1748470248076,-571.9742255,0.0002337,2]
[362820687,1748470248085,-158.368211,0.0002337,2]
[362820688,1748470248095,-571.9742255,0.0002337,2]
[362820689,1748470248104,-158.368211,0.0002337,2]
[362820690,1748470248114,-567.6367937,0.0002337,2]
[362820691,1748470248124,-153.0,0.0002337,2]
[362820692,1748470248134,-153.0,0.0002337,2]
[362820693,1748470248144,-153.0,0.0002337,2]
[362820694,1748470248154,-11919.93445544,0.00023416,2]
[362820695,1748470248163,-252.897381,0.00023452,2]
[362820696,1748470248173,-252.897381,0.00023452,2]
[362820697,1748470248184,-185.03373,0.00023452,7]
[362820698,1748470248193,-185.03373,0.00023452,7]
[362820699,1748470248203,-965.75,0.00023454,2]
[362820700,1748470248213,-4000.0,0.00023489,4]
[362820701,1748470248223,-40000.0,0.000235,7]
[362820702,1748470248234,-2376.39712422,0.00023521,9]
[362820703,1748470248244,-965.75,0.00023554,6]
[362820704,1748470248254,-900.0,0.00023561,2]
[362820705,1748470248263,-500.0,0.00023561,2]
[362820706,1748470248274,-1325.15,0.00023561,2]
[362820707,1748470248283,-962.47,0.00023561,2]
[362820708,1748470248293,-513.27,0.00023561,2]
[362820709,1748470248303,-1147.31,0.00023561,2]
[362820710,1748470248312,-612.83,0.00023561,2]
[362820711,1748470248322,-179.8891,0.00023562,2]
[362820712,1748470248332,-301797.81075082,0.000236,2]
[362820713,1748470248342,-6610.72,0.000236,7]
[362820714,1748470248351,-3305.06,0.000236,7]
[362820715,1748470248361,-252.897381,0.000236,2]
[362820716,1748470248371,-252.897375,0.000236,2]
[362820717,1748470248380,-185.03373,0.000236,7]
[362820718,1748470248390,-185.033728,0.000236,7]
[362820719,1748470248399,-1043.47124724,0.00023616,2]
[362820720,1748470248414,-2000.0,0.00023616,2]
[362820721,1748470248424,-1017.39866528,0.00023616,2]
[362820722,1748470248433,-2000.0,0.00023616,2]
[362820723,1748470248442,-2400.0,0.00023616,2]
[362820724,1748470248453,-2000.0,0.00023616,2]
[362820725,1748470248462,-223.0315306,0.00023637,2]
[362820726,1748470248472,-250.0,0.00023647,2]
[362820727,1748470248483,-965.75,0.00023654,7]
[362820728,1748470248493,-500.0,0.00023678,4]
[362820729,1748470248503,-2376.39712422,0.00023693,9]
[362820730,1748470248513,-965.75,0.00023754,6]
[362820731,1748470248524,-11919.93445544,0.00023795,2]
[362820732,1748470248534,-411764.12686649,0.000238,2]
[362820733,1748470248544,-1347365.34636892,0.000238,2]
[362820734,1748470248554,-109497.58,0.000238,2]
[362820735,1748470248563,-17678.37,0.000238,2]
[362820736,1748470248573,-83092.33320998,0.000238,2]
[362820737,1748470248583,-370932.07,0.000238,7]
[362820738,1748470248592,-1325.15,0.00023835,2]
[362820739,1748470248601,-962.47,0.00023835,2]
[362820740,1748470248612,-513.27,0.00023835,2]
[362820741,1748470248622,-1147.31,0.00023835,2]
[362820742,1748470248632,-612.83,0.00023835,2]
[362820743,1748470248642,-965.75,0.00023854,6]
[362820744,1748470248652,-2376.39712422,0.00023866,10]
[362820745,1748470248662,-18593.93,0.000239,30]
[362820746,1748470248672,-410.8100361,0.00023918,2]
[362820747,1748470248681,-153.0,0.00023918,2]
[362820748,1748470248691,-965.75,0.00023954,3]
[362820749,1748470248701,-6746.31591936,0.00024,2]
[362820750,1748470248711,-201.9225757,0.00024,2]
[362820751,1748470248720,-250.47725034,0.00024,60]
[362820752,1748470248730,-1000.0,0.00024,2]
[362820753,1748470248740,-535.76991174,0.00024,14]
[362820754,1748470248750,-51231.80726508,0.00024,7]
[362820755,1748470248759,-13673.0,0.00024,7]
[362820756,1748470248844,-1117.27846581,0.00024,5]
[362820757,1748470248854,-10775.9694,0.00024,7]
[362820758,1748470248864,-151.0,0.00024,14]
[362820759,1748470248873,-7423.92223362,0.00024,10]
[362820760,1748470248883,-1682.12092282,0.00024,2]
[362820761,1748470248893,-10082.59800094,0.00024,2]
[362820762,1748470248902,-2000.0,0.00024,2]
[362820763,1748470248912,-2000.0,0.00024,30]
[362820764,1748470248922,-4117.0,0.00024,10]
[362820765,1748470248931,-2000.0,0.00024,2]
[362820766,1748470248941,-2000.0,0.00024,2]
[362820767,1748470248950,-2000.0,0.00024,2]
[362820768,1748470248960,-2000.0,0.00024,2]
[362820769,1748470248970,-229.229959,0.00024,7]
[362820770,1748470248979,-229.229959,0.00024,10]
[362820771,1748470248989,-423.24161968,0.00024,7]
[362820772,1748470248998,-423.24161968,0.00024,10]
[362820773,1748470249008,-160.0,0.00024,7]
[362820774,1748470249020,-160.0,0.00024,10]
[362820775,1748470249028,-160.0,0.00024,7]
[362820776,1748470249038,-2376.39712422,0.00024038,10]
[362820777,1748470249048,-262.0,0.00024038,2]
[362820778,1748470249058,-965.75,0.00024054,5]
[362820779,1748470249067,-364.1099385,0.00024055,2]
[362820780,1748470249077,-364.1099385,0.00024055,2]
[362820781,1748470249087,-200.0,0.0002406,9]
[362820782,1748470249096,-430.0,0.00024109,2]
[362820783,1748470249106,-430.0,0.00024109,2]
[362820784,1748470249116,-430.0,0.00024109,2]
[362820785,1748470249125,-430.0,0.00024109,2]
[362820786,1748470249135,-430.0,0.00024109,2]
[362820787,1748470249145,-430.0,0.00024109,2]
[362820788,1748470249156,-430.0,0.00024109,2]
[362820789,1748470249166,-430.0,0.00024109,2]
[362820790,1748470249176,-430.0,0.00024109,2]
[362820791,1748470249186,-430.0,0.00024109,2]
[362820792,1748470249196,-430.0,0.00024109,2]
[362820793,1748470249206,-430.0,0.00024109,2]
[362820794,1748470249215,-430.0,0.00024109,2]
[362820795,1748470249226,-430.0,0.00024109,2]
[362820796,1748470249236,-500.0,0.00024109,2]